bitfinex/quotes_ETHUSD_20241022
["timestamp","ask_amount","ask_price","bid_price","bid_amount"]
[1729564321146,4.57418,2649.3,2648.8,3.77528]
[1729564322937,1.63447,2649.3,2648.7,0.779]
[1729564323123,0.7921,2649.1,2648.3,4.56117]
[1729564323306,0.7921,2649.1,2648.3,0.7853]
[1729564323534,3.77551,2648.7,2648.3,0.7853]
[1729564323733,7.55047,2648.9,2648.3,4.5613]
[1729564324052,3.77521,2648.9,2648.3,4.5613]
[1729564324358,3.77521,2648.9,2648.4,3.77575]
[1729564324506,3.77496,2649.1,2648.7,0.7853]
[1729564325153,0.7921,2648.9,2648.5,0.7853]
[1729564325360,4.56727,2648.9,2648.5,0.7853]
[1729564326589,3.77529,2648.8,2648.5,0.7853]
[1729564328474,3.77529,2648.8,2648.4,1.64395076]
[1729564330474,3.77546,2648.7,2648.3,2.41205076]
[1729564330868,3.77558,2648.6,2648.3,0.7681]
[1729564331077,3.77558,2648.6,2648.2,5.43395076]
[1729564331369,3.77558,2648.6,2648.3,1.64395076]
[1729564331527,3.77546,2648.7,2648.3,1.64395076]
[1729564332272,7.55102,2648.7,2648.2,3.79]
[1729564332474,7.55102,2648.7,2648.4,1.64395076]
[1729564332475,3.77546,2648.7,2648.4,1.64395076]
[1729564332682,3.77546,2648.7,2648.5,1.64395076]
[1729564332914,3.77546,2648.7,2648.4,1.64395076]
[1729564333204,3.77523,2648.9,2648.6,2.45605076]
[1729564333556,3.77523,2648.9,2648.6,0.8121]
[1729564335358,3.77523,2648.9,2648.3,0.8121]
[1729564335359,0.99789108,2648.9,2648.3,0.8121]
[1729564335559,3.77551,2648.7,2648.3,2.45605076]
[1729564335770,3.77551,2648.7,2648.4,1.64395076]
[1729564336307,3.77523,2648.9,2648.5,1.64395076]
[1729564336647,3.77523,2648.9,2648.6,1.64395076]
[1729564336889,3.77503,2649.0,2648.7,0.8121]
[1729564337115,3.77467,2649.3,2648.9,1.64395076]
[1729564337865,7.54939,2649.3,2648.9,1.64395076]
[1729564338100,0.7848,2649.4,2648.7,0.8121]
[1729564338101,3.77509,2649.0,2648.7,0.8121]
[1729564338897,3.77509,2649.0,2648.8,1.64395076]
[1729564339404,3.7748,2649.2,2648.9,1.64395076]
[1729564339559,3.7748,2649.2,2648.8,0.24560508]
[1729564339762,3.77487,2649.1,2648.8,0.24560508]
[1729564340065,3.7748,2649.2,2648.8,0.24560508]
[1729564340706,4.5593,2649.4,2649.0,1.64395076]
[1729564341001,4.5593,2649.4,2649.1,0.7926]
[1729564341002,3.7745,2649.4,2649.1,0.7926]
[1729564341604,7.54906,2649.4,2649.1,0.7926]
[1729564341822,3.7745,2649.4,2649.1,0.7926]
[1729564342321,3.77472,2649.2,2649.1,0.7926]
[1729564343075,3.77472,2649.2,2648.9,0.8065]
[1729564343526,3.77472,2649.2,2648.9,2.45045076]
[1729564343671,3.77451,2649.4,2649.0,1.64395076]
[1729564343874,3.77451,2649.4,2648.9,3.0805877]
[1729564345425,3.7746,2649.3,2648.9,3.0805877]
[1729564346286,3.77451,2649.4,2649.0,1.64395076]
[1729564346731,4.35991311,2649.6,2649.2,1.64395076]
[1729564346893,0.58569311,2649.6,2649.3,1.64395076]
[1729564347226,0.58569311,2649.6,2649.2,1.64395076]
[1729564347227,3.77429,2649.5,2649.2,1.64395076]
[1729564347428,4.35992311,2649.6,2649.2,1.64395076]
[1729564348999,4.35992311,2649.6,2649.1,2.43195076]
[1729564350414,4.35992311,2649.6,2649.2,1.64395076]
[1729564350612,4.35992311,2649.6,2649.1,2.43195076]
[1729564350836,4.35992311,2649.6,2649.2,1.64395076]
[1729564353139,0.58569311,2649.6,2649.2,1.64395076]
[1729564354035,4.35986311,2649.6,2649.2,1.64395076]
[1729564355540,4.35986311,2649.6,2649.1,6.20680076]
[1729564356413,4.35986311,2649.6,2649.2,1.64395076]
[1729564357526,0.58569311,2649.6,2649.3,1.64395076]
[1729564357722,0.58569311,2649.6,2649.2,5.41866076]
[1729564357930,0.58569311,2649.6,2649.3,1.64395076]
[1729564358299,4.35985311,2649.6,2649.1,2.43195076]
[1729564359411,0.7615,2649.5,2649.0,8.37384]
[1729564359612,0.7615,2649.5,2649.0,6.24286076]
[1729564359933,0.7615,2649.5,2649.1,1.64395076]
[1729564361305,4.35985311,2649.6,2649.2,1.64395076]
[1729564361533,0.58569311,2649.6,2649.3,1.64395076]
[1729564361746,0.58569311,2649.6,2649.4,0.7534]
[1729564363447,0.58569311,2649.6,2649.2,1.64395076]
[1729564363757,0.58569311,2649.6,2649.2,2.39735076]
[1729564364403,0.58569311,2649.6,2649.2,0.7534]
[1729564364654,4.35985311,2649.6,2649.2,0.7534]
[1729564369426,4.35985311,2649.6,2649.2,2.39735076]
[1729564369748,0.58569311,2649.6,2649.2,6.17199076]
[1729564369954,0.58569311,2649.6,2649.3,1.64395076]
[1729564371085,0.58569311,2649.6,2649.4,1.64395076]
[1729564371244,0.58569311,2649.6,2649.3,1.64395076]
[1729564371445,0.58569311,2649.6,2649.3,5.41845076]
[1729564371641,0.58569311,2649.6,2649.5,6.18714076]
[1729564371856,0.58569311,2649.6,2649.5,6.8134032]
[1729564372095,0.58569311,2649.6,2649.5,6.8888786]
[1729564372271,0.58569311,2649.6,2649.5,6.8134032]
[1729564373082,0.58569311,2649.6,2649.5,6.88887824]
[1729564373692,0.58569311,2649.6,2649.5,7.43887824]
[1729564373892,0.58569311,2649.6,2649.5,7.3634032]
[1729564374072,0.58569311,2649.6,2649.5,7.43887446]
[1729564374253,0.58569311,2649.6,2649.5,9.08282522]
[1729564374447,0.58569311,2649.6,2649.5,9.00735396]
[1729564375148,0.01886609,2650.1,2650.0,4.60258]
[1729564375344,4.53504,2650.6,2650.1,3.77343]
[1729564375545,4.7037242,2650.6,2650.3,1.64395076]
[1729564375853,0.7623,2650.6,2650.4,1.64395076]
[1729564376062,0.7623,2650.6,2650.3,1.64395076]
[1729564376351,3.9412942,2650.7,2650.4,1.64395076]
[1729564376694,0.1686842,2650.6,2650.3,1.64395076]
[1729564378591,0.1686842,2650.6,2650.2,1.64395076]
[1729564379448,3.77288,2650.5,2650.0,5.440209]
[1729564379780,2.43975076,2650.4,2649.8,1.64395076]
[1729564379959,3.77317,2650.3,2649.8,1.64395076]
[1729564380590,3.77333,2650.2,2649.7,1.64395076]
[1729564380793,2.42085076,2650.1,2649.6,1.64395076]
[1729564380995,3.77359,2650.0,2649.6,1.64395076]
[1729564381295,0.7769,2650.1,2649.7,1.64395076]
[1729564381589,3.77359,2650.0,2649.6,2.33144308]
[1729564381819,3.77359,2650.0,2649.6,1.64395076]
[1729564382657,3.77359,2650.0,2649.5,5.41813076]
[1729564382852,7.54726,2650.0,2649.5,1.64395076]
[1729564383050,3.77359,2650.0,2649.5,1.64395076]
[1729564383270,3.77359,2650.0,2649.6,1.64395076]
[1729564383665,0.7769,2650.1,2649.7,1.64395076]
[1729564384197,4.55035,2650.1,2649.7,1.64395076]
[1729564384691,3.77359,2650.0,2649.7,1.64395076]
[1729564385194,3.77359,2650.0,2649.8,1.64395076]
[1729564385353,3.77359,2650.0,2649.7,1.64395076]
[1729564386190,0.7769,2650.1,2649.7,1.64395076]
[1729564386499,4.55035,2650.1,2649.7,1.64395076]
[1729564388580,4.55035,2650.1,2649.7,2.41885076]
[1729564388894,4.55035,2650.1,2649.7,1.64395076]
[1729564389897,4.55035,2650.1,2649.8,1.64395076]
[1729564390200,8.3754,2650.3,2649.8,1.64395076]
[1729564390396,3.7734,2650.2,2649.8,1.64395076]
[1729564390697,3.77345,2650.1,2649.7,1.64395076]
[1729564391260,3.7736,2650.0,2649.7,1.64395076]
[1729564391461,3.7736,2650.0,2649.6,1.64395076]
[1729564391773,4.6026,2650.0,2649.6,1.64395076]
[1729564392499,0.829,2650.0,2649.6,1.64395076]
[1729564392660,0.829,2650.0,2649.7,1.64395076]
[1729564394394,0.829,2650.0,2649.8,1.64395076]
[1729564394602,3.77345,2650.1,2649.7,1.64395076]
[1729564397301,3.77345,2650.1,2649.8,1.64395076]
[1729564397801,3.77345,2650.1,2649.7,1.64395076]
[1729564398186,3.77345,2650.1,2649.6,1.64395076]
[1729564398713,3.77345,2650.1,2649.7,1.64395076]
[1729564399506,3.7736,2650.0,2649.7,1.64395076]
[1729564399694,3.7736,2650.0,2649.6,1.64395076]
[1729564400410,3.77345,2650.1,2649.6,1.64395076]
[1729564400627,3.77345,2650.1,2649.7,1.64395076]
[1729564400823,0.8198,2650.2,2650.0,1.64395076]
[1729564401121,0.8198,2650.2,2649.8,4.63464379]
[1729564401122,1.38554701,2650.6,2649.8,0.7854]
[1729564401280,1.38554701,2650.6,2649.6,4.01599508]
[1729564401281,1.38554701,2650.6,2650.1,3.77342]
[1729564401622,1.38554701,2650.6,2650.1,4.959462]
[1729564401861,1.38554701,2650.6,2650.1,8.732812]
[1729564401978,1.38554701,2650.6,2650.3,1.64395076]
[1729564402183,0.58544701,2650.6,2650.4,1.64395076]
[1729564402406,0.58544701,2650.6,2650.3,1.64395076]
[1729564402640,4.35817701,2650.6,2650.3,1.64395076]
[1729564403524,4.35817701,2650.6,2650.2,1.64395076]
[1729564403525,0.58544701,2650.6,2650.2,1.64395076]
[1729564403728,0.58544701,2650.6,2650.2,2.6891709]
[1729564403886,0.58544701,2650.6,2650.3,1.64395076]
[1729564405030,0.58544701,2650.6,2650.5,2.46025076]
[1729564405184,0.58544701,2650.6,2650.5,6.30857353]
[1729564405385,0.01886609,2651.1,2650.7,3.77248]
[1729564405623,0.7906,2651.2,2650.8,1.71939211]
[1729564405835,0.7906,2651.2,2650.7,5.41643076]
[1729564405985,3.77202,2651.1,2650.6,3.77268]
[1729564406187,2.43455076,2651.2,2650.6,5.41663076]
[1729564406420,2.43455076,2651.2,2650.7,5.41652076]
[1729564406421,0.7906,2651.2,2650.7,5.41652076]
[1729564406725,3.77206,2651.1,2650.6,2.64452284]
[1729564407023,3.77206,2651.1,2650.6,6.41720284]
[1729564407787,6.20645076,2651.2,2650.7,3.77257]
[1729564408012,6.20645076,2651.2,2650.7,4.87318628]
[1729564408256,6.20645076,2651.2,2650.7,1.10061628]
[1729564409325,4.53903,2650.9,2650.4,1.64395076]
[1729564409526,3.77245,2650.8,2650.3,4.53867]
[1729564409826,3.77245,2650.8,2650.3,6.18262076]
[1729564410956,1.64395076,2650.4,2649.9,8.32032]
[1729564411268,0.8085,2650.3,2649.9,7.56371]
[1729564411415,0.8085,2650.3,2649.9,9.20766076]
[1729564412158,0.8085,2650.3,2650.0,5.41753076]
[1729564412466,0.8085,2650.3,2650.0,4.69433308]
[1729564418770,4.5278,2650.6,2650.1,4.53723]
[1729564419131,0.755,2650.6,2650.1,4.53723]
[1729564419728,4.52774,2650.6,2650.1,0.7638]
[1729564420243,3.77289,2650.5,2650.0,3.77358]
[1729564420448,4.52774,2650.6,2650.0,9.19954841]
[1729564420644,4.52774,2650.6,2650.1,0.07545985]
[1729564420840,4.52774,2650.6,2650.0,5.35050623]
[1729564421052,4.52774,2650.6,2650.0,5.42596784]
[1729564422367,4.52774,2650.6,2650.0,5.35050623]
[1729564422558,8.30061,2650.6,2650.0,5.35050623]
[1729564423393,4.52774,2650.6,2650.0,5.35050623]
[1729564423983,8.30055,2650.6,2650.0,5.35050623]
[1729564424502,4.52774,2650.6,2650.0,5.35050623]
[1729564425192,4.52774,2650.6,2650.0,9.12400623]
[1729564425550,4.52774,2650.6,2650.0,5.35050623]
[1729564425749,4.52774,2650.6,2650.0,9.12401623]
[1729564425999,3.77303,2650.4,2649.9,7.5637]
[1729564426209,3.77303,2650.4,2649.9,3.79]
[1729564426210,0.7562,2650.3,2649.9,3.79]
[1729564426345,3.7733,2650.2,2649.9,3.79]
[1729564426851,4.52964,2650.1,2649.9,3.79]
[1729564427252,0.7562,2650.1,2649.9,3.79]
[1729564430757,4.52965,2650.1,2649.9,3.79]
[1729564430957,0.7562,2650.1,2649.9,3.79]
[1729564431575,3.7733,2650.2,2649.9,3.79]
[1729564432615,4.58001,2650.4,2650.1,3.66890229]
[1729564432906,0.58544955,2650.5,2650.0,4.66045359]
[1729564433086,4.35832955,2650.5,2650.0,4.66045359]
[1729564433304,4.35832955,2650.5,2650.0,4.58499]
[1729564433522,4.35832955,2650.5,2650.0,4.6604516]
[1729564433718,4.35832955,2650.5,2650.1,1.29445041]
[1729564434396,4.35832955,2650.5,2650.3,1.641791]
[1729564434608,0.58544955,2650.5,2650.3,1.641791]
[1729564434772,0.58544955,2650.5,2650.1,5.06787041]
[1729564434773,0.58544955,2650.5,2650.4,1.641791]
[1729564443400,0.58544955,2650.5,2650.4,5.414801]
[1729564443600,0.58544955,2650.5,2650.4,6.44090301]
[1729564443841,0.58544955,2650.5,2650.4,6.72226283]
[1729564444443,0.58544955,2650.5,2650.4,6.72223697]
[1729564444615,0.58544955,2650.5,2650.4,6.44090301]
[1729564445339,0.58544955,2650.5,2650.4,1.641791]
[1729564445796,3.7723,2650.9,2650.4,1.641791]
[1729564446110,4.55517,2651.1,2650.8,1.641791]
[1729564446257,4.55517,2651.1,2650.7,1.641791]
[1729564446583,4.55517,2651.1,2650.8,1.641791]
[1729564447988,4.55517,2651.1,2650.7,1.641791]
[1729564448552,8.32728,2651.1,2650.7,1.641791]
[1729564448752,4.55517,2651.1,2650.7,1.641791]
[1729564449101,0.7831,2651.1,2650.9,1.641791]
[1729564449589,0.7831,2651.1,2650.8,1.641791]
[1729564449888,0.7831,2651.1,2650.9,1.641791]
[1729564453299,0.7831,2651.1,2650.8,1.641791]
[1729564455493,0.7831,2651.1,2650.9,1.641791]
[1729564456895,0.7831,2651.1,2650.8,1.641791]
[1729564457555,0.7831,2651.1,2650.9,1.641791]
[1729564457793,0.7831,2651.1,2650.8,1.641791]
[1729564459383,3.77199,2651.2,2650.8,1.641791]
[1729564460875,0.35283077,2651.1,2650.9,1.641791]
[1729564461074,0.8042,2651.3,2650.9,1.641791]
[1729564461270,4.12473351,2651.2,2650.8,1.641791]
[1729564461502,0.35283351,2651.1,2650.8,1.7172323]
[1729564461679,3.7719,2651.2,2650.8,2.27187523]
[1729564461985,0.35282482,2651.1,2650.8,2.27187523]
[1729564462185,3.7719,2651.2,2650.9,1.641791]
[1729564462701,0.35281134,2651.1,2650.9,1.641791]
[1729564462902,3.7719,2651.2,2650.9,1.641791]
[1729564463057,3.7719,2651.2,2650.7,4.58361]
[1729564463058,0.35281145,2651.1,2650.8,1.641791]
[1729564463263,3.7719,2651.2,2650.8,1.641791]
[1729564463468,0.35280696,2651.1,2650.8,1.641791]
[1729564463654,3.7719,2651.2,2650.8,1.641791]
[1729564463861,0.35280721,2651.1,2650.8,1.641791]
[1729564464163,3.7719,2651.2,2650.8,1.641791]
[1729564464377,0.35280119,2651.1,2650.8,1.641791]
[1729564464579,3.7719,2651.2,2650.8,2.2643311]
[1729564465058,0.35280076,2651.1,2650.8,2.2643311]
[1729564465266,3.7719,2651.2,2650.8,2.2643311]
[1729564465477,0.35279255,2651.1,2650.8,2.2643311]
[1729564465677,3.7719,2651.2,2650.8,2.2643311]
[1729564465878,0.35279267,2651.1,2650.8,2.2643311]
[1729564466085,3.7719,2651.2,2650.8,2.2643311]
[1729564466288,0.35279272,2651.1,2650.8,1.641791]
[1729564466580,3.7719,2651.2,2650.8,1.641791]
[1729564466903,0.35278715,2651.1,2650.8,1.641791]
[1729564467203,3.7719,2651.2,2650.8,1.641791]
[1729564467501,0.35278317,2651.1,2650.8,1.641791]
[1729564467802,3.7719,2651.2,2650.8,1.641791]
[1729564468098,0.35278411,2651.1,2650.8,1.641791]
[1729564468289,3.7719,2651.2,2650.8,1.641791]
[1729564468497,0.35278475,2651.1,2650.8,1.641791]
[1729564468791,3.7719,2651.2,2650.8,1.641791]
[1729564468991,0.35279155,2651.1,2650.8,1.641791]
[1729564469291,3.7719,2651.2,2650.8,1.641791]
[1729564469511,0.3527876,2651.1,2650.9,1.641791]
[1729564469802,3.7719,2651.2,2650.8,1.641791]
[1729564470168,0.35278758,2651.1,2650.8,1.641791]
[1729564470467,3.7719,2651.2,2650.8,1.641791]
[1729564471369,0.35278407,2651.1,2650.7,6.225401]
[1729564471566,3.7719,2651.2,2650.7,6.225401]
[1729564471878,0.35279915,2651.1,2650.8,1.641791]
[1729564472120,3.7719,2651.2,2650.8,1.641791]
[1729564472322,0.35283253,2651.1,2650.8,1.641791]
[1729564472524,3.7719,2651.2,2650.8,1.641791]
[1729564472817,0.35282892,2651.1,2650.8,1.641791]
[1729564473148,3.7719,2651.2,2650.8,1.641791]
[1729564473450,0.3528908,2651.1,2650.8,1.641791]
[1729564473651,1.38948471,2651.3,2651.0,1.641791]
[1729564473810,0.35288854,2651.2,2650.9,1.641791]
[1729564474014,5.16131471,2651.3,2650.9,1.641791]
[1729564474320,0.35289416,2651.2,2650.9,1.641791]
[1729564474520,5.16131471,2651.3,2650.9,1.641791]
[1729564474728,0.35288761,2651.2,2650.9,1.641791]
[1729564474935,0.35288761,2651.1,2650.9,1.641791]
[1729564475154,1.38948471,2651.3,2650.9,1.641791]
[1729564475446,0.3529475,2651.2,2650.9,1.641791]
[1729564475631,0.58528471,2651.3,2651.0,1.641791]
[1729564475859,0.35294331,2651.2,2650.9,2.27187323]
[1729564476022,4.35703471,2651.3,2651.0,1.641791]
[1729564476232,0.35295118,2651.2,2650.9,2.27187323]
[1729564476520,0.35295118,2651.1,2650.9,2.27187323]
[1729564476730,4.35703471,2651.3,2650.9,2.27187323]
[1729564476928,0.35304475,2651.2,2650.9,2.27187323]
[1729564477140,0.35304475,2651.1,2650.9,2.27187323]
[1729564477341,4.35703471,2651.3,2650.9,2.27187323]
[1729564477546,0.35313142,2651.2,2650.9,2.27187323]
[1729564477754,0.35313142,2651.1,2650.9,2.27187323]
[1729564477936,4.35703471,2651.3,2650.9,2.27187323]
[1729564478252,0.35312509,2651.2,2650.9,2.27187323]
[1729564478568,0.35312509,2651.1,2650.9,2.27187323]
[1729564478723,0.35312509,2651.0,2650.9,2.25717323]
[1729564478922,0.35312509,2651.0,2650.9,1.641791]
[1729564479743,0.35312509,2651.2,2650.9,1.641791]
[1729564479957,0.35312509,2651.1,2650.9,1.641791]
[1729564480167,0.35312509,2651.0,2650.9,1.641791]
[1729564481072,4.35703471,2651.3,2650.9,1.641791]
[1729564481281,5.54862979,2651.3,2650.9,1.641791]
[1729564481438,0.35332559,2651.2,2650.9,1.641791]
[1729564481637,0.35332559,2651.1,2650.9,1.641791]
[1729564481869,0.35332559,2651.0,2650.9,1.641791]
[1729564482173,0.35332559,2651.0,2650.8,1.641791]
[1729564482473,0.35332559,2650.9,2650.8,1.641791]
[1729564484279,4.88902559,2650.9,2650.3,4.53715]
[1729564484482,0.35332559,2650.8,2650.5,1.641791]
[1729564484682,0.35332559,2650.7,2650.5,1.641791]
[1729564484842,4.5357,2650.9,2650.5,1.641791]
[1729564485180,0.35354696,2650.8,2650.5,1.641791]
[1729564485343,0.35354696,2650.7,2650.5,1.641791]
[1729564485551,0.35354696,2650.6,2650.5,1.641791]
[1729564486287,0.7634,2650.9,2650.5,5.414661]
[1729564486447,0.35358666,2650.8,2650.6,1.641791]
[1729564486651,0.35358666,2650.7,2650.6,1.641791]
[1729564489296,0.7634,2650.9,2650.6,1.641791]
[1729564489529,0.7634,2650.9,2650.7,1.641791]
[1729564491543,0.35374321,2650.8,2650.7,1.641791]
[1729564491709,0.7634,2650.9,2650.6,1.641791]
[1729564491905,0.7634,2650.9,2650.7,1.641791]
[1729564493306,0.35376991,2650.8,2650.7,1.641791]
[1729564494351,0.35376991,2650.8,2650.6,1.641791]
[1729564494547,0.35376991,2650.7,2650.6,1.641791]
[1729564494751,0.35376991,2650.7,2650.6,5.414521]
[1729564500733,0.35376991,2650.7,2650.3,5.49754404]
[1729564500923,0.35376991,2650.6,2650.5,3.77285]
[1729564501141,0.35376991,2650.6,2650.5,5.49009385]
[1729564501460,4.57364,2651.2,2650.7,3.77257]
[1729564501622,0.35372357,2651.1,2650.8,1.641791]
[1729564501822,0.35372357,2651.0,2650.8,1.641791]
[1729564502017,0.35372357,2650.9,2650.8,1.641791]
[1729564502262,4.57364,2651.2,2650.8,1.641791]
[1729564502456,0.35372949,2650.9,2650.8,1.641791]
[1729564503264,0.35372949,2650.9,2650.7,5.414251]
[1729564503462,0.35372949,2650.8,2650.7,5.414251]
[1729564504762,0.35372949,2650.8,2650.7,5.48969385]
[1729564504948,0.35372949,2650.8,2650.7,5.414251]
[1729564505857,0.8017,2651.2,2650.7,5.414251]
[1729564506068,0.8017,2651.2,2650.8,1.641791]
[1729564506236,0.35370005,2651.1,2650.8,1.641791]
[1729564506565,0.91962183,2651.0,2650.8,1.641791]
[1729564506778,0.8017,2651.2,2650.9,1.641791]
[1729564506927,0.91963706,2651.1,2650.9,1.641791]
[1729564507262,0.91963706,2651.0,2650.9,1.641791]
[1729564509372,0.91963706,2651.0,2650.8,1.641791]
[1729564509546,0.8017,2651.2,2650.8,1.641791]
[1729564509737,0.56593876,2650.9,2650.8,1.641791]
[1729564510058,0.91965048,2650.9,2650.8,1.641791]
[1729564510219,0.35371172,2650.9,2650.8,1.641791]
[1729564510622,0.91965048,2650.9,2650.8,1.92400282]
[1729564512421,0.35371172,2650.9,2650.8,1.92400282]
[1729564512932,0.91965048,2650.9,2650.8,1.92400282]
[1729564513153,0.35371172,2650.9,2650.8,1.92400282]
[1729564513358,0.91965048,2650.9,2650.8,1.641791]
[1729564513565,0.91965048,2650.9,2650.8,1.92397099]
[1729564513764,0.35371172,2650.9,2650.8,1.92397099]
[1729564514147,0.91965048,2650.9,2650.8,1.92397099]
[1729564514758,1.72315048,2650.9,2650.8,0.28217999]
[1729564515800,2.27267853,2650.9,2650.8,0.28217999]
[1729564516008,3.7726,2650.7,2650.1,4.58132]
[1729564516304,7.68676953,2650.9,2650.0,1.641791]
[1729564516305,3.77309,2650.4,2650.0,1.641791]
[1729564516607,4.69288726,2650.3,2650.0,1.641791]
[1729564516813,0.35371172,2650.2,2650.0,1.641791]
[1729564517018,0.35371172,2650.1,2650.0,1.641791]
[1729564517183,0.35370679,2650.1,2650.0,1.641791]
[1729564517507,4.58271,2650.6,2650.0,1.641791]
[1729564517831,5.31464615,2650.5,2650.1,1.641791]
[1729564517965,0.91924605,2650.4,2650.2,1.641791]
[1729564518310,0.35355617,2650.3,2650.2,1.641791]
[1729564519207,0.35355617,2650.3,2650.0,1.641791]
[1729564519409,3.77302,2650.4,2650.0,1.641791]
[1729564519566,0.35337527,2650.3,2650.0,1.641791]
[1729564519773,0.35337527,2650.2,2650.0,1.641791]
[1729564520091,3.77302,2650.4,2650.0,1.641791]
[1729564520287,0.35337911,2650.3,2650.0,1.641791]
[1729564520481,0.35337911,2650.2,2650.0,1.641791]
[1729564520693,3.77302,2650.4,2650.1,1.641791]
[1729564520907,0.35329554,2650.3,2650.1,1.641791]
[1729564521140,3.77302,2650.4,2650.1,1.641791]
[1729564521435,0.35329768,2650.3,2650.1,1.641791]
[1729564521637,3.77302,2650.4,2650.1,1.641791]
[1729564521801,0.35322292,2650.3,2650.1,1.641791]
[1729564522000,3.77302,2650.4,2650.1,1.641791]
[1729564522203,0.3532191,2650.3,2650.1,1.641791]
[1729564522438,3.77302,2650.4,2650.1,1.641791]
[1729564522746,3.77288,2650.5,2650.1,1.641791]
[1729564522919,4.12618519,2650.4,2649.9,4.5979]
[1729564523230,0.7759,2650.2,2650.0,1.641791]
[1729564523401,0.7759,2650.2,2650.1,1.641791]
[1729564523601,8.36947,2650.4,2650.0,1.641791]
[1729564523798,0.35313238,2650.3,2650.0,1.641791]
[1729564524009,9.47052991,2650.4,2650.0,1.641791]
[1729564524326,0.35313171,2650.3,2650.0,1.641791]
[1729564524529,9.47052991,2650.4,2650.0,1.641791]
[1729564524530,5.69741991,2650.4,2650.0,1.641791]
[1729564524775,0.3530974,2650.3,2650.0,1.641791]
[1729564524928,4.59632,2650.4,2650.0,1.641791]
[1729564525232,0.3530943,2650.3,2650.0,1.641791]
[1729564525535,8.36947,2650.4,2650.0,1.641791]
[1729564525738,0.35306133,2650.3,2650.0,1.641791]
[1729564525943,5.5974461,2650.4,2650.0,1.641791]
[1729564526142,0.35305928,2650.3,2650.0,1.641791]
[1729564526346,5.5974461,2650.4,2650.0,1.641791]
[1729564526639,0.35303793,2650.3,2650.0,1.641791]
[1729564526935,5.5974461,2650.4,2650.0,1.641791]
[1729564527102,0.35303505,2650.3,2650.0,1.641791]
[1729564527436,9.3705461,2650.4,2650.0,1.641791]
[1729564527637,4.71022461,2650.3,2649.9,5.431791]
[1729564527841,4.71022461,2650.3,2649.9,3.79]
[1729564528038,1.1561261,2650.2,2649.9,3.79]
[1729564528209,4.5764,2650.2,2649.9,3.79]
[1729564529626,0.8031,2650.2,2649.9,5.431791]
[1729564530040,0.8031,2650.2,2649.9,3.79]
[1729564530229,1.89593056,2650.2,2649.9,3.79]
[1729564530917,5.66926056,2650.2,2649.9,3.79]
[1729564532148,5.66926056,2650.2,2650.0,0.10085373]
[1729564533911,3.77344,2650.1,2650.0,0.10085373]
[1729564534192,5.66926056,2650.2,2650.0,0.10085373]
[1729564534416,0.73110516,2650.1,2650.0,0.10085373]
[1729564536200,0.8031,2650.2,2650.0,0.10085373]
[1729564536403,3.7732,2650.3,2650.0,1.74264473]
[1729564536586,3.7732,2650.3,2650.0,0.10085373]
[1729564537186,7.54644,2650.3,2650.0,0.10085373]
[1729564537414,3.7732,2650.3,2650.0,0.10085373]
[1729564537618,4.610326,2650.3,2650.0,0.10085373]
[1729564537927,4.610326,2650.3,2650.0,1.74264473]
[1729564537928,0.837126,2650.3,2650.0,1.74264473]
[1729564538127,4.59813,2650.4,2650.0,1.74264473]
[1729564538426,4.59813,2650.4,2650.0,2.52344473]
[1729564539436,3.77317,2650.3,2650.0,0.10085373]
[1729564540074,3.77334,2650.2,2650.0,0.10085373]
[1729564540332,3.77317,2650.3,2650.0,0.10085373]
[1729564540492,4.7744701,2650.3,2650.0,0.10085373]
[1729564540698,8.5477401,2650.3,2650.0,0.10085373]
[1729564541198,4.7744701,2650.3,2650.0,0.10085373]
[1729564542397,0.8251,2650.4,2650.1,1.641791]
[1729564542724,0.8251,2650.4,2650.2,0.09988821]
[1729564545143,4.59812,2650.4,2650.0,1.641791]
[1729564545302,4.59812,2650.4,2650.3,0.09988821]
[1729564545499,4.95079745,2650.4,2650.0,1.641791]
[1729564545732,4.59812,2650.4,2650.3,0.09988821]
[1729564545940,5.95208266,2650.4,2650.0,1.641791]
[1729564546145,4.59812,2650.4,2650.3,0.09988821]
[1729564546347,4.95080764,2650.4,2649.9,9.205491]
[1729564546516,4.59812,2650.4,2650.3,0.09988821]
[1729564546702,4.95080825,2650.4,2650.0,1.641791]
[1729564546899,4.59812,2650.4,2650.3,0.09988821]
[1729564547138,5.95209328,2650.4,2650.0,1.641791]
[1729564547441,4.59812,2650.4,2650.3,0.09988821]
[1729564547608,4.95082465,2650.4,2650.0,1.641791]
[1729564547809,4.59812,2650.4,2650.1,0.09988821]
[1729564549847,0.8251,2650.4,2650.1,0.09988821]
[1729564550053,0.8251,2650.4,2650.1,1.74167921]
[1729564550639,0.8251,2650.4,2650.1,0.09988821]
[1729564551144,0.8251,2650.4,2650.1,1.74167921]
[1729564551639,0.8251,2650.4,2650.1,0.09988821]
[1729564551862,4.59813,2650.4,2650.1,0.09988821]
[1729564552038,0.8251,2650.4,2650.1,0.09988821]
[1729564552650,4.59812,2650.4,2650.1,0.09988821]
[1729564553869,0.8251,2650.4,2650.1,1.74167921]
[1729564554355,4.59812,2650.4,2650.1,0.09988821]
[1729564555345,0.8251,2650.4,2650.1,0.09988821]
[1729564555657,4.59817,2650.4,2650.1,0.09988821]
[1729564556464,0.35297226,2650.3,2650.1,0.09988821]
[1729564556965,0.8251,2650.4,2650.1,0.09988821]
[1729564557452,4.53327,2650.6,2650.2,0.782]
[1729564557763,4.53327,2650.6,2650.2,0.88181161]
[1729564558752,8.30611,2650.6,2650.2,0.88181161]
[1729564559339,4.53327,2650.6,2650.2,0.88181161]
[1729564559641,3.77289,2650.5,2650.2,0.88181161]
[1729564561281,0.7605,2650.6,2650.3,1.641791]
[1729564561579,3.77244,2650.8,2650.4,1.641791]
[1729564561740,3.77244,2650.8,2650.4,1.74154134]
[1729564562159,0.91954999,2650.7,2650.4,0.09975034]
[1729564562357,0.91954999,2650.6,2650.4,1.74154134]
[1729564562555,0.35367307,2650.5,2650.4,1.74154134]
[1729564562767,0.35367307,2650.5,2650.4,8.65088389]
[1729564563079,3.77205,2651.1,2650.5,4.56991]
[1729564563388,0.91939582,2651.0,2650.6,1.641791]
[1729564563535,0.91939582,2651.0,2650.5,4.56991]
[1729564563536,0.35361378,2650.9,2650.7,1.641791]